bitfinex-derivatives/quotes_SOLF0:USTF0_20250719
["timestamp","ask_amount","ask_price","bid_price","bid_amount"]
[1752918435459,4.52976,176.94,176.93,8.7987]
[1752918440767,4.52976,176.94,176.93,10.21637148]
[1752918440963,4.52976,176.94,176.93,8.7987]
[1752918441170,4.52976,176.94,176.93,10.21637148]
[1752918442768,7.74976,176.94,176.93,10.21637148]
[1752918442969,7.74976,176.94,176.93,8.7987]
[1752918443871,4.52976,176.94,176.93,8.7987]
[1752918445273,6e-05,176.94,176.93,8.7987]
[1752918446569,3.22,176.99,176.98,8.7971]
[1752918446974,3.22,177.02,176.99,3.15]
[1752918447370,3.22,177.02,177.0,8.7964]
[1752918449673,3.22,177.01,176.99,5.6466]
[1752918450272,3.22,177.01,176.97,0.03793375]
[1752918450273,3.22,177.01,177.0,8.7964]
[1752918451372,3.22,177.01,177.0,5.6464]
[1752918452669,3.22,177.01,177.0,8.7964]
[1752918453276,3.22,177.01,177.0,5.6464]
[1752918453675,3.22,177.01,176.99,5.6466]
[1752918454177,3.22,177.01,177.0,5.6464]
[1752918455780,3.03,177.05,177.02,5.6456]
[1752918455974,3.03,177.05,177.0,3.1]
[1752918456478,3.03,177.05,177.01,0.03573953]
[1752918456675,3.03,177.05,177.01,3.13573953]
[1752918456875,3.03,177.03,177.01,8.78163953]
[1752918458073,5.6455,177.03,177.01,8.78163953]
[1752918458373,3.03,177.02,177.01,8.78163953]
[1752918462677,3.03,177.04,177.03,5.6454]
[1752918462881,3.03,177.04,177.01,0.03573953]
[1752918463578,3.03,177.04,177.03,3.1]
[1752918466683,8.6752,177.04,177.03,3.1]
[1752918478590,3.03,177.04,177.03,3.1]
[1752918480194,8.6752,177.04,177.03,3.1]
[1752918483789,5.6452,177.04,177.03,3.1]
[1752918484799,8.6752,177.04,177.03,3.1]
[1752918485197,5.6457,177.03,177.01,0.03573953]
[1752918485396,8.8457,177.03,177.02,3.21]
[1752918499408,3.2,177.03,177.02,8.8558]
[1752918499808,3.2,177.03,177.02,3.21]
[1752918500507,3.2,177.06,177.02,3.21]
[1752918500713,3.2,177.06,177.04,3.21]
[1752918501205,3.2,177.05,177.04,3.21]
[1752918501513,3.2,177.05,177.04,8.87026741]
[1752918501910,3.2,177.05,177.04,8.8702674]
[1752918503014,8.8448,177.05,177.04,8.8702674]
[1752918504416,8.8448,177.05,177.04,5.6602674]
[1752918505010,8.8448,177.05,177.04,8.8702674]
[1752918505213,3.2,177.05,177.04,8.8702674]
[1752918506213,3.2,177.05,177.04,14.5154674]
[1752918507512,3.2,177.06,177.05,3.21]
[1752918507814,3.2,177.06,177.05,8.8702674]
[1752918509219,8.8445,177.06,177.05,8.8702674]
[1752918511719,3.2,177.06,177.05,8.8702674]
[1752918513117,3.2,177.06,177.05,14.5150674]
[1752918513316,3.2,177.06,177.05,8.8702674]
[1752918517624,8.8445,177.06,177.05,8.8702674]
[1752918518425,8.8445,177.06,177.05,5.6602674]
[1752918518927,8.8445,177.06,177.05,8.8002674]
[1752918519323,8.8445,177.06,177.05,5.6602674]
[1752918519722,8.8445,177.06,177.05,6.74e-05]
[1752918520119,1.41499377,177.07,177.01,0.03573953]
[1752918520318,3.17,177.02,177.01,0.03573953]
[1752918520926,4.58499377,177.02,177.01,0.03573953]
[1752918521127,8.8158,177.02,177.01,0.03573953]
[1752918521330,10.23079377,177.02,177.01,0.03573953]
[1752918522437,3.17,176.99,176.97,3.14]
[1752918522630,3.17,176.98,176.97,3.14]
[1752918523526,3.17,176.98,176.97,8.7874]
[1752918527632,3.17,177.05,176.99,8.7866]
[1752918527828,4.58499377,177.0,176.99,8.7866]
[1752918529839,5.6461,177.01,177.0,5.6464]
[1752918529840,1.41499377,177.01,177.0,5.6464]
[1752918530030,4.58499377,177.01,177.0,8.7864]
[1752918530438,4.58499377,177.01,177.0,5.6464]
[1752918530640,4.58499377,177.01,176.99,8.7867]
[1752918530838,3.17,177.0,176.99,8.7867]
[1752918536247,3.17,177.0,176.98,5.6469]
[1752918536447,3.17,177.0,176.98,8.7869]
[1752918537248,3.17,177.0,176.99,3.14]
[1752918537544,3.17,177.0,176.98,8.7869]
[1752918538738,8.8164,177.0,176.98,8.7869]
[1752918538937,3.17,176.99,176.98,8.7869]
[1752918540353,3.17,176.99,176.98,3.14]
[1752918542047,3.17,176.99,176.97,10.20229377]
[1752918542350,3.17,176.99,176.98,5.6471]
[1752918542652,3.17,176.99,176.98,8.7871]
[1752918543751,3.17,176.99,176.98,3.14]
[1752918544149,0.03595501,177.01,176.96,4.55499377]
[1752918544350,3.17,176.99,176.96,1.41499377]
[1752918544551,3.17,176.99,176.97,3.14]
[1752918544751,3.17,176.98,176.97,3.14]
[1752918544948,3.17,176.98,176.96,3.14]
[1752918545146,8.8171,176.98,176.96,3.14]
[1752918545352,3.07,176.97,176.96,3.14]
[1752918546252,3.07,176.97,176.96,8.7877]
[1752918556556,3.07,176.99,176.98,8.8271]
[1752918569470,3.07,177.0,176.98,3.18]
[1752918569676,4.52094878,177.01,176.98,3.18]
[1752918570072,3.07,177.0,176.99,8.8268]
[1752918578975,3.07,177.0,176.97,3.1]
[1752918579275,3.23,176.98,176.97,3.1]
[1752918580880,3.23,176.98,176.97,8.7474]
[1752918581578,4.64499377,177.0,176.99,5.6468]
[1752918581878,4.64499377,177.0,176.99,8.7468]
[1752918583075,4.64499377,177.0,176.99,5.6468]
[1752918583581,4.64499377,177.0,176.99,8.7468]
[1752918583781,3.23,176.99,176.98,8.747]
[1752918584077,3.23,176.99,176.93,107.94310449]
[1752918584279,3.23,176.99,176.98,5.6471]
[1752918587087,3.23,176.99,176.97,8.7473]
[1752918587282,3.23,176.99,176.97,5.6473]
[1752918587790,4.64499377,176.99,176.97,8.7473]
[1752918587990,3.23,176.98,176.97,8.7473]
[1752918588987,4.64499377,176.98,176.93,3.1]
[1752918589193,1.41499377,176.98,176.93,4.51499377]
[1752918589394,3.23,176.97,176.94,3.1]
[1752918590093,3.23,176.97,176.94,4.51499377]
[1752918590294,3.23,176.97,176.95,3.1]
[1752918590594,3.23,176.97,176.96,3.1]
[1752918591090,3.23,176.97,176.96,8.7477]
[1752918601900,3.23,176.97,176.96,5.6477]
[1752918602093,3.23,176.97,176.95,5.6479]
[1752918602799,3.23,176.97,176.95,8.7479]
[1752918603600,3.23,176.95,176.93,3.1]
[1752918604603,3.23,176.95,176.94,5.6484]
[1752918604803,3.23,176.95,176.94,8.7484]
[1752918605497,3.23,176.95,176.94,5.6484]
[1752918605697,3.23,176.95,176.94,8.6684]
[1752918606296,3.23,176.95,176.93,8.6686]
[1752918606504,3.23,176.95,176.94,3.02]
[1752918606904,3.31,176.94,176.93,3.02]
[1752918607096,3.31,176.93,176.92,3.02]
[1752918607297,3.31,176.93,176.91,103.16]
[1752918607493,3.31,176.92,176.91,108.8093]
[1752918607804,3.31,176.92,176.91,111.8293]
[1752918608106,3.31,176.92,176.9,8.6695]
[1752918608296,3.31,176.92,176.9,3.02]
[1752918608697,3.31,176.92,176.9,8.6696]
[1752918609798,3.31,176.92,176.91,5.6493]
[1752918612003,3.31,176.92,176.91,8.6693]
[1752918613007,3.31,176.92,176.9,8.6695]
[1752918613213,3.31,176.92,176.9,3.02]
[1752918613515,3.31,176.92,176.91,5.6493]
[1752918614513,4.72499377,176.92,176.91,5.6493]
[1752918616820,4.72499377,176.92,176.91,8.6693]
[1752918618620,3.31,176.92,176.91,8.6693]
[1752918618817,4.76067613,176.93,176.92,5.649]
[1752918619022,4.76067613,176.93,176.92,8.669]
[1752918619225,0.03568236,176.93,176.92,8.669]
[1752918620121,3.34568236,176.93,176.92,8.669]
[1752918622319,8.959,176.92,176.89,3.02]
[1752918622523,1.41499377,176.9,176.88,106.16]
[1752918622721,3.31,176.89,176.88,111.8103]
[1752918627227,3.31,176.89,176.88,108.7903]
[1752918629028,3.31,176.89,176.88,111.8103]
[1752918630422,3.31,176.92,176.88,103.14]
[1752918630626,3.31,176.92,176.91,3.02]
[1752918631530,3.34568236,176.93,176.92,3.02]
[1752918632634,3.34568236,176.93,176.92,10.08399377]
[1752918641943,3.37568236,176.93,176.92,10.08399377]
[1752918645846,0.03568236,176.93,176.92,10.08399377]
[1752918646153,3.34,176.97,176.93,3.25]
[1752918646450,3.34,176.97,176.95,3.25]
[1752918646650,3.34,176.97,176.96,5.6477]
[1752918646853,3.34,176.97,176.96,8.8977]
[1752918647252,3.34,176.97,176.96,10.31269377]
[1752918650551,6.33049906,177.06,176.98,3.25]
[1752918650753,1.41499377,177.03,176.99,3.25]
[1752918651253,3.34,177.02,177.0,8.8962]
[1752918651749,3.34,177.02,177.01,5.6461]
[1752918653359,3.34,177.02,177.0,8.8963]
[1752918653547,3.34,177.02,177.0,5.6463]
[1752918653855,4.75499377,177.02,177.0,5.6463]
[1752918654160,3.34,177.01,177.0,5.6463]
[1752918655456,4.75499377,177.01,176.99,0.03992707]
[1752918655655,3.34,177.0,176.99,0.03992707]
[1752918656454,4.75499377,177.0,176.99,0.03992707]
[1752918656853,3.34,176.99,176.95,5.6479]
[1752918657154,3.34,176.96,176.95,5.6479]
[1752918658252,3.34,176.96,176.95,8.8979]
[1752918658459,3.34,176.96,176.95,10.31289377]
[1752918658760,3.37638431,176.97,176.96,8.8977]
[1752918659158,3.34,176.97,176.96,8.8977]
[1752918660456,3.3783816,176.98,176.97,8.8974]
[1752918661561,0.0383816,176.98,176.97,8.8974]
[1752918661961,3.3783816,176.98,176.97,8.8974]
[1752918663961,0.0383816,176.98,176.97,8.8974]
[1752918664361,3.3783816,176.98,176.97,8.8974]
[1752918665767,0.0383816,176.98,176.97,8.8974]
[1752918666167,3.3383816,176.98,176.97,8.8974]
[1752918668161,3.3383816,176.98,176.97,5.6474]
[1752918669260,3.3383816,176.98,176.95,3.2]
[1752918669661,3.3383816,176.98,176.94,3.2]
[1752918669864,3.3383816,176.98,176.96,5.6475]
[1752918674266,3.3383816,176.98,176.93,103.02]
[1752918674567,3.3383816,176.98,176.95,3.2]
[1752918674773,3.3383816,176.98,176.96,5.6475]
[1752918675665,3.3383816,176.98,176.97,5.6474]
[1752918676963,3.3383816,176.98,176.97,8.8474]
[1752918682472,3.3383816,176.98,176.97,5.6474]
[1752918683672,3.3383816,176.98,176.97,8.8474]
[1752918686378,4.75409213,176.98,176.94,3.2]
[1752918686576,3.3,176.95,176.94,3.2]
[1752918687877,3.3,176.95,176.94,8.8484]
[1752918688777,3.3,176.95,176.94,5.6484]
[1752918690475,1.41571053,176.95,176.92,3.2]
[1752918690676,3.3,176.92,176.91,3.2]
[1752918690975,3.3,176.92,176.9,3.2]
[1752918691180,4.71571053,176.91,176.88,3.2]
[1752918691367,3.3,176.9,176.88,3.2]
[1752918691775,3.3,176.9,176.89,5.6497]
[1752918692073,4.71571053,176.9,176.89,5.6497]
[1752918692369,4.71571053,176.9,176.87,131.03074567]
[1752918692583,4.71571053,176.89,176.87,133.48114567]
[1752918692767,3.3,176.88,176.87,133.48114567]
[1752918692968,3.3,176.85,176.83,8.8517]
[1752918693271,3.3,176.85,176.83,3.2]
[1752918693577,3.3,176.85,176.83,8.8518]
[1752918694276,3.3,176.85,176.84,5.6515]
[1752918694580,3.3,176.85,176.84,8.8515]
[1752918695174,3.3,176.85,176.83,5.6517]
[1752918695370,3.3,176.85,176.82,3.18]
[1752918695879,3.3,176.85,176.83,5.6516]
[1752918696177,3.3,176.85,176.82,3.18]
[1752918697783,3.3,176.85,176.84,5.6515]
[1752918700382,3.3,176.85,176.84,8.8315]
[1752918701883,0.03841907,176.86,176.85,8.8312]
[1752918702085,3.13841907,176.86,176.85,8.8312]
[1752918702285,0.03841907,176.86,176.85,8.8312]
[1752918703593,3.13841907,176.86,176.85,8.8312]
[1752918703789,3.1,176.9,176.89,8.8299]
[1752918704391,3.1,176.9,176.89,5.6499]
[1752918704699,3.1,176.9,176.85,3.18]
[1752918704897,3.1,176.9,176.86,3.18]
[1752918705093,3.1,176.9,176.86,3.21780224]
[1752918705293,3.1,176.9,176.87,5.6505]
[1752918705799,3.1,176.9,176.87,8.8305]
[1752918705997,3.1,176.9,176.88,5.6502]
[1752918706597,3.1,176.9,176.87,5.6505]
[1752918706899,3.1,176.89,176.87,5.6505]
[1752918707196,3.1,176.88,176.86,0.03780224]
[1752918707400,2.21597608,176.87,176.86,0.03780224]
[1752918707698,5.31597608,176.87,176.86,0.03780224]
[1752918708796,10.96657608,176.87,176.86,0.03780224]
[1752918709200,0.46219776,176.86,176.84,5.6513]
[1752918709397,3.1,176.85,176.84,5.6513]
[1752918709697,3.1,176.85,176.84,8.8313]
[1752918711693,3.1,176.85,176.83,5.6518]
[1752918711899,2.21597608,176.85,176.82,3.18]
[1752918712201,3.1,176.84,176.77,105.23597608]
[1752918712391,3.1,176.84,176.81,3.18]
[1752918713097,3.1,176.82,176.76,3.18]
[1752918713298,3.1,176.8,176.76,3.18]
[1752918713799,3.13772182,176.8,176.78,8.8332]
[1752918714699,3.13772182,176.8,176.79,5.6531]
[1752918715902,3.13772182,176.8,176.79,8.8331]
[1752918718702,0.03772182,176.8,176.79,8.8331]
[1752918719404,3.13772182,176.8,176.79,8.8331]
[1752918719603,0.03772182,176.8,176.79,8.8331]
[1752918720401,3.13772182,176.8,176.79,8.8331]
[1752918720902,3.1,176.79,176.75,3.18]
[1752918721404,3.1,176.77,176.75,3.18]
[1752918721802,3.1,176.77,176.76,5.6539]
[1752918722098,3.1,176.77,176.76,8.8339]
[1752918722302,6.86681817,176.77,176.76,8.8339]
[1752918722503,0.03772182,176.8,176.78,5.6535]
[1752918722803,7.83907835,176.79,176.78,5.6535]
[1752918723005,10.93907835,176.79,176.78,8.8335]
[1752918723998,10.93907835,176.79,176.78,5.6535]
[1752918726007,10.93907835,176.79,176.78,8.9135]
[1752918727608,10.93907835,176.79,176.78,5.6535]
[1752918727803,10.93907835,176.79,176.77,8.9137]
[1752918728011,10.99907835,176.78,176.77,5.6537]
[1752918728802,3.16,176.77,176.76,5.6541]
[1752918729004,7.83907835,176.77,176.71,103.04]
[1752918729213,3.16,176.75,176.72,3.26]
[1752918729410,3.76602975,176.74,176.73,8.9151]
[1752918733314,7.90939274,176.74,176.73,8.9151]
[1752918733613,3.76602975,176.74,176.73,8.9151]
[1752918734816,4.14507922,176.74,176.73,8.9151]
[1752918738617,2.21597608,176.81,176.74,3.26]
[1752918738815,3.16,176.8,176.74,3.26]
[1752918739014,3.16,176.79,176.74,3.26]
[1752918739816,3.16,176.79,176.78,5.6534]
[1752918741318,3.16,176.79,176.78,8.9134]
[1752918748728,3.16,176.79,176.78,5.6534]
[1752918750524,3.16,176.79,176.78,8.9134]
[1752918750926,3.16,176.79,176.78,5.6534]
[1752918751828,3.16,176.79,176.75,0.03689133]
[1752918752035,3.16,176.79,176.75,3.29689133]
[1752918752333,8.8131,176.79,176.75,3.29689133]
[1752918752534,3.16,176.78,176.76,5.6539]
[1752918752829,3.16,176.78,176.75,0.03689133]
[1752918753033,4.57970496,176.76,176.75,0.03689133]
[1752918753431,3.16,176.75,176.72,3.26]
[1752918753935,3.16,176.75,176.74,5.6547]
[1752918754228,3.16,176.76,176.74,3.26]
[1752918756033,3.16,176.76,176.75,8.7244]
[1752918757433,3.16,176.76,176.73,3.1074241]
[1752918757635,3.16,176.76,176.74,3.07]
[1752918757833,3.3,176.74,176.73,0.0374241]
[1752918758532,3.3,176.74,176.73,5.6924241]
[1752918761736,3.3,176.76,176.73,3.1074241]
[1752918762042,3.3,176.79,176.73,3.1074241]
[1752918762340,3.3,176.77,176.75,5.6541]
[1752918762531,6.33049906,176.82,176.73,0.0374241]
[1752918762532,3.3,176.75,176.73,0.0374241]
[1752918762732,3.3,176.75,176.71,3.07]
[1752918763136,3.3,176.75,176.73,5.6548]
[1752918764043,3.3,176.74,176.73,5.6548]
[1752918767350,3.3,176.74,176.72,5.69243357]
[1752918768757,8.9546,176.74,176.72,5.69243357]
[1752918768958,3.3,176.73,176.72,5.69243357]
[1752918769553,3.3,176.73,176.72,0.03733357]
[1752918770353,8.9548,176.73,176.72,0.03733357]
[1752918773360,11.17243796,176.73,176.72,0.03733357]
[1752918774252,3.3,176.71,176.66,103.04]
[1752918774460,3.3,176.71,176.67,3.07]
[1752918774754,3.3,176.71,176.69,5.6559]
[1752918774954,3.3,176.71,176.69,8.7259]
[1752918775859,3.3,176.71,176.7,5.6557]
[1752918776358,3.3,176.71,176.7,8.7257]
[1752918778362,3.3,176.71,176.7,5.6557]
[1752918778961,4.72050735,176.71,176.69,5.6559]
[1752918779261,3.3,176.7,176.69,5.6559]
[1752918779462,3.3,176.7,176.68,3.07]
[1752918779663,3.3,176.7,176.68,8.7263]
[1752918779852,3.3,176.7,176.68,3.07]
[1752918780253,1.42050735,176.69,176.68,8.7264]
[1752918780460,4.72050735,176.69,176.68,8.7264]
[1752918781062,3.3,176.67,176.65,3.07]
[1752918781258,4.72050735,176.67,176.65,3.07]
[1752918781464,4.72050735,176.67,176.66,3.07]
[1752918782070,3.3,176.66,176.61,3.07]
[1752918782267,4.72050735,176.64,176.61,3.07]
[1752918782657,4.72050735,176.64,176.63,8.7277]
[1752918783060,3.34012193,176.64,176.63,5.6577]
[1752918783267,2.26129991,176.64,176.61,3.07]
[1752918783469,3.3,176.63,176.61,3.07]
[1752918783766,3.3,176.63,176.62,3.07]
[1752918784668,3.3,176.63,176.62,8.7283]
[1752918785462,3.3,176.63,176.62,5.6583]
[1752918786068,3.3,176.63,176.61,8.9383]
[1752918786662,5.52117798,176.63,176.61,8.9383]
[1752918786865,3.03,176.62,176.61,8.9383]
[1752918788566,3.03,176.62,176.61,3.28]
[1752918788769,7.87937798,176.63,176.61,3.28]
[1752918789268,3.03,176.62,176.61,3.28]
[1752918789867,3.03,176.62,176.61,8.9386]
[1752918790065,3.03,176.62,176.61,5.6586]
[1752918791062,3.03,176.62,176.6,8.9388]
[1752918791464,3.03,176.62,176.56,483.26]
[1752918791668,3.03,176.62,176.61,8.9386]
[1752918791867,3.03,176.62,176.61,3.28]
[1752918793070,3.03,176.62,176.6,8.9387]
[1752918793274,5.25117798,176.61,176.6,5.6587]
[1752918794369,5.25117798,176.61,176.6,8.9387]
[1752918795365,5.25117798,176.61,176.59,5.6592]
[1752918795565,3.03,176.6,176.59,5.6592]
[1752918795965,3.03,176.6,176.58,3.28]
[1752918796162,3.03,176.6,176.58,8.9392]
[1752918796366,3.03,176.6,176.59,3.28]
[1752918797073,3.03,176.6,176.58,8.9392]
[1752918797268,3.03,176.6,176.59,5.6592]
[1752918797468,3.03,176.6,176.54,103.08]
[1752918797669,3.03,176.6,176.59,3.28]
[1752918798163,3.03,176.6,176.58,5.6592]
[1752918798572,3.03,176.6,176.58,8.9392]
[1752918798773,8.689,176.6,176.58,8.9392]
[1752918798974,3.03,176.59,176.57,8.9398]
[1752918799670,3.03,176.59,176.58,3.28]
[1752918799971,3.03,176.59,176.57,8.9398]
[1752918800472,3.03,176.58,176.57,3.28]
[1752918800671,3.03,176.58,176.55,3.28]
[1752918801074,3.03,176.58,176.56,3.28]
[1752918801272,3.03,176.58,176.56,8.9402]
[1752918801465,3.03,176.58,176.54,106.36]
[1752918801664,8.6898,176.58,176.55,8.9404]
[1752918802064,3.03,176.56,176.55,3.28]
[1752918802370,3.03,176.56,176.54,5.6608]
[1752918802575,3.03,176.56,176.54,8.9408]
[1752918803075,3.03,176.56,176.55,5.6605]
[1752918803276,3.03,176.56,176.55,8.9405]
[1752918805076,4.45273635,176.56,176.55,8.9405]
[1752918806375,4.45273635,176.56,176.55,3.28]
[1752918806873,4.45273635,176.56,176.54,5.6607]
[1752918807179,4.45273635,176.55,176.54,8.9407]
[1752918808178,4.45273635,176.55,176.54,3.28]
[1752918808977,4.45273635,176.55,176.54,5.6608]
[1752918809276,4.45273635,176.55,176.54,8.9408]
[1752918809678,4.49089651,176.57,176.56,8.9402]
[1752918809977,8.18192347,176.57,176.56,8.9402]
[1752918811174,8.18192347,176.57,176.56,3.28]
[1752918811373,3.03,176.56,176.55,8.9404]
[1752918811581,4.45273635,176.56,176.55,8.9404]
[1752918812385,8.1457142,176.56,176.55,8.9404]
[1752918814879,3.69297785,176.56,176.55,10.36313635]
[1752918815086,3.03,176.6,176.55,10.36313635]
[1752918815087,1.42273635,176.6,176.56,3.28]
[1752918815284,6.9244126,176.59,176.55,1.42273635]
[1752918815488,3.23,176.6,176.59,5.6592]
[1752918815781,1.42273635,176.62,176.59,3.32]
[1752918815977,3.69523634,176.61,176.59,4.74273635]
[1752918816176,1.42273635,176.63,176.62,8.9783]
[1752918816377,5.11911748,176.63,176.62,8.9783]
[1752918816780,8.34911748,176.63,176.62,8.9783]
[1752918816983,6.92638113,176.63,176.62,8.9783]
[1752918818579,3.69638113,176.63,176.62,8.9783]
[1752918818782,3.23,176.67,176.62,3.32]
[1752918818977,2.22107139,176.7,176.62,3.32]
[1752918819282,3.23,176.68,176.62,3.32]
[1752918819476,3.23,176.68,176.61,2.22107139]
[1752918819688,3.23,176.68,176.66,3.32]
[1752918820585,3.23,176.68,176.63,5.69629523]
[1752918820883,3.23,176.65,176.63,0.03839523]
[1752918821078,5.6575,176.65,176.63,0.03839523]
[1752918821284,3.23,176.64,176.63,3.32]
[1752918822784,3.23,176.64,176.6,5.6586]
[1752918822985,3.23,176.64,176.61,3.32]
[1752918823184,3.23,176.64,176.62,3.32]
[1752918823684,3.23,176.63,176.62,3.32]
[1752918828991,3.23,176.63,176.61,3.32]
[1752918829685,8.8879,176.63,176.61,3.32]
[1752918829887,3.23,176.62,176.61,3.32]
[1752918831896,3.23,176.62,176.6,3.35796912]
[1752918832789,2.22107139,176.64,176.6,0.03796912]
[1752918832986,3.23,176.61,176.6,0.03796912]
[1752918833384,3.23,176.61,176.6,3.35796912]
[1752918833889,3.23,176.62,176.6,3.35796912]
[1752918837501,2.22107139,176.64,176.6,3.35796912]
[1752918837801,3.23,176.61,176.6,3.35796912]
[1752918838804,3.23,176.61,176.6,9.01676912]
[1752918839207,3.23,176.61,176.6,3.35796912]
[1752918840508,3.23,176.61,176.6,9.01676912]
[1752918840704,4.65157527,176.67,176.61,3.32]
[1752918841001,4.65157527,176.67,176.6,1.45954439]
[1752918841002,3.23,176.65,176.63,3.32]
[1752918841704,3.23,176.66,176.63,3.32]
[1752918841907,3.23,176.66,176.64,3.32]
[1752918842305,4.65157527,176.65,176.62,0.03854191]
[1752918842505,4.65157527,176.63,176.62,0.03854191]
[1752918842706,3.23,176.63,176.62,3.32]
[1752918843204,3.23,176.65,176.62,3.32]
[1752918843410,3.23,176.65,176.62,5.6579]
[1752918843606,3.23,176.67,176.63,3.32]
[1752918843907,2.22080245,176.68,176.63,8.9777]
[1752918844103,2.22080245,176.68,176.64,3.32]
[1752918844304,3.23,176.66,176.64,3.32]
[1752918845409,3.23,176.66,176.64,8.9775]
[1752918845711,3.23,176.66,176.65,3.08]
[1752918845913,3.23,176.66,176.63,8.7377]
[1752918846112,3.23,176.66,176.64,3.08]
[1752918847212,3.23,176.66,176.63,5.6577]
[1752918847412,3.23,176.66,176.65,3.08]
[1752918847610,3.23,176.66,176.64,3.08]
[1752918849613,3.23,176.66,176.63,3.08]
[1752918850509,2.22080245,176.66,176.62,0.03577881]
[1752918850714,3.13,176.65,176.62,0.03577881]
[1752918850912,3.13,176.64,176.62,0.03577881]
[1752918851212,3.13,176.63,176.62,0.03577881]
[1752918851413,8.7879,176.63,176.62,0.03577881]
[1752918858519,3.13,176.6,176.57,3.08]
[1752918859519,3.13,176.6,176.56,133.36957413]
[1752918859720,3.13,176.6,176.58,3.08]
[1752918861830,3.13,176.6,176.57,5.6599]
[1752918862123,3.13,176.6,176.57,3.08]
[1752918862424,3.13,176.6,176.56,133.36957413]
[1752918862621,3.13,176.6,176.58,3.08]
[1752918864023,3.13,176.59,176.57,3.08]
[1752918864624,3.13,176.58,176.56,127.70947413]
[1752918865024,4.55238135,176.57,176.56,130.78947413]
[1752918868335,4.55238135,176.58,176.57,3.08]
[1752918868927,4.55238135,176.58,176.57,8.7399]
[1752918869227,4.55238135,176.58,176.57,3.08]
[1752918869529,4.55238135,176.58,176.57,8.7399]
[1752918870232,4.55238135,176.58,176.57,3.08]
[1752918874026,4.55238135,176.58,176.56,133.36957413]
[1752918874235,4.55238135,176.57,176.56,136.44957413]
[1752918879840,4.55238135,176.57,176.56,130.78947413]
[1752918880140,4.55238135,176.57,176.56,127.70947413]
[1752918881338,4.55238135,176.57,176.55,111.7805]
[1752918881535,3.1,176.56,176.55,111.7805]
[1752918881939,3.1,176.56,176.55,103.02]
[1752918882641,8.7602,176.56,176.55,103.02]
[1752918883544,3.1,176.55,176.54,3.1]
[1752918883742,4.52238135,176.55,176.54,5.6609]
[1752918883942,1.42238135,176.55,176.54,8.7609]
[1752918884444,4.52238135,176.55,176.54,8.7609]
[1752918884742,1.42238135,176.56,176.55,8.7605]
[1752918885142,4.52238135,176.56,176.55,8.7605]
[1752918885642,4.52238135,176.56,176.55,3.1]
[1752918890346,4.52238135,176.56,176.55,8.7605]
[1752918891048,0.03623527,176.57,176.56,8.7602]
[1752918891248,0.03623527,176.57,176.56,113.20258135]
[1752918898854,1.42238135,176.64,176.57,3.1]
[1752918899049,1.42238135,176.64,176.56,109.18171299]
[1752918899050,3.1,176.63,176.59,1.42238135]
[1752918899253,3.1,176.63,176.61,3.1]
[1752918899553,3.1,176.63,176.62,111.7581]
[1752918900352,6.33331135,176.69,176.62,111.7581]
[1752918900353,4.52238135,176.65,176.64,8.7577]